bitfinex/quotes_BTCUSD_20240927
["timestamp","ask_amount","ask_price","bid_price","bid_amount"]
[1727450959758,0.89485654,66488.0,66487.0,0.43764118]
[1727450960024,1.05595654,66488.0,66487.0,0.43764118]
[1727450960290,1.04363792,66488.0,66487.0,0.43764118]
[1727450960539,1.06472876,66488.0,66487.0,0.43764118]
[1727450960768,1.06472876,66488.0,66487.0,0.43664118]
[1727450961237,1.06472876,66488.0,66487.0,0.43764118]
[1727450961470,1.06472876,66488.0,66487.0,0.43964118]
[1727450961704,1.06472876,66488.0,66487.0,0.44046918]
[1727450961940,1.07738476,66488.0,66487.0,0.44146918]
[1727450962423,1.06638476,66488.0,66487.0,0.44046918]
[1727450962688,1.06638476,66488.0,66487.0,0.44146918]
[1727450962689,1.07738476,66488.0,66487.0,0.44146918]
[1727450962927,1.07738476,66488.0,66487.0,0.37185477]
[1727450963237,1.07738476,66488.0,66454.0,0.22590191]
[1727450963238,0.290461,66462.0,66454.0,0.22590191]
[1727450963495,0.91992708,66462.0,66454.0,0.22590191]
[1727450963768,0.157477,66455.0,66454.0,0.22590191]
[1727450964010,0.99928038,66455.0,66454.0,0.22590191]
[1727450964249,0.028,66448.0,66447.0,0.000829]
[1727450964518,0.55365865,66448.0,66447.0,0.000829]
[1727450965947,0.38568613,66448.0,66447.0,0.000829]
[1727450966181,0.31978094,66448.0,66447.0,0.000829]
[1727450966418,0.15528794,66448.0,66447.0,0.000829]
[1727450966650,0.16828794,66448.0,66447.0,0.000829]
[1727450967136,0.17828794,66448.0,66447.0,0.000829]
[1727450967381,0.023,66448.0,66447.0,0.247724]
[1727450967612,0.023,66448.0,66447.0,0.4204861]
[1727450967613,0.013,66448.0,66447.0,0.4204861]
[1727450967857,0.018,66448.0,66447.0,0.4204861]
[1727450968360,0.005,66448.0,66447.0,0.4204861]
[1727450968620,0.014,66448.0,66447.0,0.4204861]
[1727450968877,0.014,66448.0,66447.0,0.247724]
[1727450969156,0.150477,66456.0,66447.0,0.097229]
[1727450969354,0.15528794,66455.0,66451.0,0.150485]
[1727450970047,0.15528794,66455.0,66449.0,0.15049]
[1727450970281,0.30576494,66455.0,66449.0,0.30098]
[1727450970511,0.30576494,66455.0,66451.0,0.150486]
[1727450970736,0.15528794,66455.0,66449.0,0.30098]
[1727450970994,0.15528794,66455.0,66447.0,0.100229]
[1727450970995,0.15528794,66455.0,66447.0,0.097229]
[1727450971246,0.150482,66453.0,66448.0,0.150492]
[1727450971483,0.15528794,66455.0,66448.0,0.150492]
[1727450971484,0.30576594,66455.0,66450.0,0.150487]
[1727450971732,0.30576594,66455.0,66451.0,0.150486]
[1727450972195,0.0154201,66454.0,66451.0,0.150486]
[1727450972429,0.0154201,66453.0,66450.0,0.150487]
[1727450972653,0.0154201,66453.0,66449.0,0.300981]
[1727450972654,0.0154201,66452.0,66451.0,0.150486]
[1727450972889,0.0154201,66454.0,66447.0,0.097229]
[1727450973154,0.0154201,66454.0,66447.0,0.1002386]
[1727450973377,0.0154201,66454.0,66449.0,0.15049]
[1727450973378,0.180483,66453.0,66449.0,0.15049]
[1727450973610,0.0154201,66452.0,66451.0,0.150486]
[1727450974080,0.03,66453.0,66452.0,0.150484]
[1727450975756,0.03,66453.0,66452.0,0.23029346]
[1727450975993,0.03,66453.0,66452.0,0.32469346]
[1727450976223,0.03,66453.0,66452.0,0.321684]
[1727450976701,0.03,66453.0,66452.0,0.325684]
[1727450977884,0.031,66453.0,66452.0,0.325684]
[1727450980258,0.001,66453.0,66452.0,0.325684]
[1727450980505,0.22590191,66465.0,66464.0,0.0956]
[1727450980745,0.22590191,66465.0,66464.0,0.246057]
[1727450981216,0.15528794,66469.0,66468.0,0.150448]
[1727450981454,0.15528794,66469.0,66464.0,0.0956]
[1727450981455,0.28818694,66472.0,66467.0,0.1727621]
[1727450981700,0.01737886,66472.0,66471.0,0.3232031]
[1727450982442,0.001,66469.0,66468.0,0.451342]
[1727450982934,0.001,66469.0,66464.0,0.0956]
[1727450983175,0.001,66469.0,66468.0,0.150448]
[1727450983636,0.001,66469.0,66468.0,0.153448]
[1727450983866,0.01654142,66469.0,66468.0,0.150448]
[1727450984334,0.01554142,66469.0,66468.0,0.150448]
[1727450985506,0.152095,66472.0,66464.0,0.0956]
[1727450985507,0.01558461,66471.0,66464.0,0.0956]
[1727450985746,0.04558461,66470.0,66469.0,0.150446]
[1727450985978,0.04558461,66470.0,66468.0,0.003]
[1727450985979,0.19602961,66470.0,66468.0,0.003]
[1727450986205,0.19602961,66470.0,66468.0,0.153448]
[1727450986206,0.01558461,66469.0,66468.0,0.153448]
[1727450986660,0.01558461,66469.0,66468.0,0.150448]
[1727450987347,0.01558461,66469.0,66464.0,0.0966]
[1727450987348,0.17087255,66469.0,66464.0,0.0966]
[1727450987358,0.005,66467.0,66464.0,0.001]
[1727450987588,0.278455,66465.0,66464.0,0.001]
[1727450987823,0.278455,66465.0,66453.0,0.22590191]
[1727450987824,0.15048,66454.0,66453.0,0.22590191]
[1727450988054,0.30576794,66454.0,66453.0,0.22590191]
[1727450988287,0.35069678,66454.0,66453.0,0.22590191]
[1727450988558,0.47183084,66454.0,66449.0,0.0945]
[1727450988781,0.04492942,66453.0,66449.0,0.0945]
[1727450989002,0.150485,66452.0,66449.0,0.0945]
[1727450989483,0.01548073,66451.0,66449.0,0.0945]
[1727450989953,0.01548073,66451.0,66449.0,0.395481]
[1727450990236,0.30095,66457.0,66449.0,0.395481]
[1727450990237,0.150474,66457.0,66452.0,0.150483]
[1727450990472,0.01548092,66450.0,66449.0,0.244991]
[1727450990714,0.15528794,66456.0,66452.0,0.150483]
[1727450990955,0.0154789,66455.0,66454.0,0.15048]
[1727450991185,0.0154789,66455.0,66454.0,0.4062421]
[1727450991416,0.0154789,66455.0,66454.0,0.5007421]
[1727450991885,0.01548286,66455.0,66454.0,0.8017011]
[1727450993293,0.01548286,66455.0,66454.0,0.8047011]
[1727450994990,0.22590191,66464.0,66463.0,0.244959]
[1727450995624,0.03,66470.0,66465.0,0.150454]
[1727450995858,0.180444,66470.0,66466.0,0.150452]
[1727450996085,0.180444,66470.0,66467.0,0.15045]
[1727450996815,0.180444,66470.0,66466.0,0.150451]
[1727450997052,0.180444,66470.0,66465.0,0.300907]
[1727450997053,0.03,66470.0,66465.0,0.300907]
[1727450997284,0.03,66470.0,66467.0,0.150448]
[1727450997514,0.03,66470.0,66468.0,0.150446]
[1727450998225,0.03,66470.0,66469.0,0.150446]
[1727450998724,0.03,66470.0,66467.0,0.3232111]
[1727450998968,0.03,66470.0,66467.0,0.1727621]
[1727450999202,0.03,66470.0,66468.0,0.001]
[1727450999439,0.031658,66470.0,66469.0,0.150446]
[1727451000897,0.031658,66470.0,66469.0,0.242046]
[1727451001144,0.031658,66470.0,66469.0,0.24505443]
[1727451001444,0.001656,66472.0,66471.0,0.245041]
[1727451001685,0.001656,66472.0,66471.0,0.8691231]
[1727451002395,0.001656,66472.0,66471.0,1.5691231]
[1727451002396,0.0010723,66472.0,66471.0,1.5691231]
[1727451002671,0.0020723,66472.0,66471.0,1.25392]
[1727451002899,0.0020723,66472.0,66471.0,1.5691231]
[1727451002900,0.0010723,66472.0,66471.0,1.5691231]
[1727451003374,0.0020723,66472.0,66471.0,0.9582231]
[1727451004089,0.0030723,66472.0,66471.0,0.9592231]
[1727451004562,0.0020723,66472.0,66471.0,0.9582231]
[1727451004794,0.0020723,66472.0,66471.0,0.706361]
[1727451005035,0.0010723,66472.0,66471.0,0.8691231]
[1727451005269,0.0020723,66472.0,66471.0,0.8801231]
[1727451005527,0.0020723,66472.0,66471.0,0.8711231]
[1727451005762,0.0020723,66472.0,66471.0,0.698361]
[1727451005995,0.0020723,66472.0,66471.0,0.55592]
[1727451006235,0.0020723,66472.0,66471.0,0.706361]
[1727451008163,0.0020723,66472.0,66471.0,0.697361]
[1727451008398,0.0020723,66472.0,66471.0,0.779861]
[1727451008875,0.0010723,66472.0,66471.0,0.778861]
[1727451009109,0.0020723,66472.0,66471.0,0.779861]
[1727451009599,0.0020723,66472.0,66471.0,0.787861]
[1727451009600,0.0030723,66472.0,66471.0,0.787861]
[1727451009850,0.0020723,66472.0,66471.0,1.397361]
[1727451010102,0.00278107,66472.0,66471.0,1.407361]
[1727451010579,0.15222007,66472.0,66471.0,1.25592]
[1727451010804,0.15222007,66472.0,66471.0,1.16132]
[1727451011291,0.00278107,66472.0,66471.0,1.16232]
[1727451011556,0.00278107,66472.0,66471.0,0.8819231]
[1727451011809,0.00078107,66472.0,66471.0,0.8819231]
[1727451012050,0.00178107,66472.0,66471.0,0.8819231]
[1727451012294,0.00078107,66472.0,66471.0,0.8719231]
[1727451013030,0.00078107,66472.0,66471.0,0.9509231]
[1727451013515,0.00078107,66472.0,66471.0,0.9499231]
[1727451013752,0.00078107,66472.0,66471.0,1.6499231]
[1727451014031,0.00178107,66472.0,66471.0,1.6509231]
[1727451015204,0.00178107,66472.0,66471.0,0.9509231]
[1727451016858,0.00178107,66472.0,66471.0,0.703161]
[1727451017096,0.00178107,66472.0,66471.0,0.45632]
[1727451017333,0.00178107,66472.0,66471.0,0.606761]
[1727451018104,0.21969199,66472.0,66471.0,0.45632]
[1727451018342,0.22180482,66472.0,66471.0,0.45632]
[1727451018578,0.31162056,66472.0,66471.0,0.606761]
[1727451018804,0.22174724,66472.0,66471.0,0.606761]
[1727451019041,0.31174152,66472.0,66471.0,0.606761]
[1727451019275,0.31172008,66472.0,66471.0,0.606761]
[1727451019508,0.31172008,66472.0,66471.0,0.45632]
[1727451019707,0.46215908,66472.0,66471.0,0.45632]
[1727451020173,0.31119235,66472.0,66471.0,0.45632]
[1727451020693,0.37163707,66472.0,66471.0,0.45632]
[1727451021155,0.22119807,66472.0,66471.0,0.45632]
[1727451021391,0.22119807,66472.0,66471.0,0.606761]
[1727451022144,0.06876587,66472.0,66471.0,0.606761]
[1727451022380,0.00125334,66472.0,66471.0,0.699861]
[1727451022600,0.06876587,66472.0,66471.0,0.699861]
[1727451022850,0.24172923,66472.0,66471.0,0.54942]
[1727451023093,0.24172923,66472.0,66471.0,0.45632]
[1727451023094,0.5288092,66472.0,66471.0,0.45632]
[1727451023331,0.55017087,66472.0,66471.0,0.45632]
[1727451023571,0.83429968,66472.0,66471.0,0.45632]
[1727451023810,0.83911788,66472.0,66471.0,0.45632]
[1727451024054,0.99482553,66472.0,66471.0,0.45532]
[1727451024298,0.68630604,66472.0,66471.0,0.45532]
[1727451024530,0.70030604,66472.0,66471.0,0.45532]
[1727451024997,0.70030604,66472.0,66471.0,0.45132]
[1727451025526,0.71430604,66472.0,66471.0,0.453149]
[1727451025755,0.81430604,66472.0,66471.0,0.453149]
[1727451026026,1.29531359,66472.0,66471.0,0.435049]
[1727451026296,1.29531359,66472.0,66453.0,0.22673091]
[1727451026297,0.023,66456.0,66453.0,0.22673091]
[1727451026537,0.60653004,66454.0,66453.0,0.22673091]
[1727451026855,0.82672063,66454.0,66453.0,0.22673091]
[1727451027240,0.90962063,66454.0,66453.0,0.000829]
[1727451029109,0.91446978,66454.0,66453.0,0.000829]
[1727451029337,0.92846978,66454.0,66453.0,0.000829]
[1727451030213,1.10256916,66454.0,66453.0,0.000829]
[1727451030444,0.015,66449.0,66447.0,0.000829]
[1727451030692,0.83320265,66449.0,66447.0,0.000829]
[1727451030949,0.91156432,66449.0,66447.0,0.000829]
[1727451031197,1.06795238,66449.0,66447.0,0.000829]
[1727451031424,0.73680222,66449.0,66447.0,0.000829]
[1727451031883,0.73880222,66449.0,66447.0,0.000829]
[1727451032576,0.85083338,66449.0,66447.0,0.000829]
[1727451032809,0.84883338,66449.0,66447.0,0.000829]
[1727451033065,0.73680222,66449.0,66447.0,0.000829]
[1727451033522,0.76141199,66449.0,66447.0,0.000829]
[1727451033524,0.523992,66449.0,66447.0,0.000829]
[1727451033756,0.42877894,66449.0,66447.0,0.000829]
[1727451034225,0.48758082,66449.0,66447.0,0.000829]
[1727451035019,0.50157525,66449.0,66447.0,0.000829]
[1727451035960,0.18328794,66449.0,66447.0,0.000829]
[1727451036188,0.028,66449.0,66447.0,0.079229]
[1727451036681,0.014,66449.0,66447.0,0.079229]
[1727451036901,0.150491,66449.0,66447.0,0.079229]
[1727451037155,0.005,66449.0,66447.0,0.079229]
[1727451037637,0.005,66449.0,66447.0,0.229723]
[1727451037859,0.005,66449.0,66447.0,0.079229]
[1727451038108,0.01,66449.0,66447.0,0.229723]
[1727451038359,0.005,66449.0,66447.0,0.229723]
[1727451038574,0.150488,66451.0,66447.0,0.229723]
[1727451038832,0.001658,66453.0,66452.0,0.150484]
[1727451039053,0.001658,66453.0,66452.0,0.3192461]
[1727451039285,0.001658,66453.0,66452.0,0.3142461]
[1727451039790,0.001658,66453.0,66452.0,0.3072461]
[1727451040256,0.001658,66453.0,66449.0,0.300982]
[1727451040257,0.001658,66453.0,66450.0,0.00300941]
[1727451040472,0.002658,66453.0,66450.0,0.30398441]
[1727451040729,0.150491,66449.0,66448.0,0.000828]
[1727451040946,0.30577894,66449.0,66448.0,0.000828]
[1727451041443,0.33041727,66449.0,66448.0,0.000828]
[1727451041671,0.50154104,66449.0,66448.0,0.000828]
[1727451041902,0.55230532,66449.0,66448.0,0.000828]
[1727451042139,0.37354322,66449.0,66448.0,0.000828]
[1727451042622,0.34177894,66449.0,66448.0,0.000828]
[1727451043305,0.35866327,66449.0,66448.0,0.001828]
[1727451047709,0.41597601,66449.0,66448.0,0.001828]
[1727451047952,0.41597601,66449.0,66427.0,0.151369]
[1727451047953,0.150527,66433.0,66432.0,0.22590191]
[1727451048190,0.32881494,66433.0,66432.0,0.22590191]
[1727451048449,0.32881494,66433.0,66427.0,0.000829]
[1727451048450,0.173536,66429.0,66427.0,0.000829]
[1727451048662,0.33046227,66429.0,66427.0,0.000829]
[1727451048902,0.32882394,66429.0,66427.0,0.000829]
[1727451049872,0.33882394,66429.0,66427.0,0.000829]
[1727451050096,0.34782394,66429.0,66428.0,0.001829]
[1727451051315,0.35264204,66429.0,66428.0,0.001829]
[1727451051789,0.019,66429.0,66428.0,0.001829]
[1727451052016,0.169536,66429.0,66428.0,0.078329]
[1727451052248,0.019,66429.0,66428.0,0.078329]
[1727451052987,0.019,66429.0,66428.0,0.327467]
[1727451054642,0.37641891,66438.0,66428.0,0.327467]
[1727451054643,0.150519,66437.0,66433.0,0.150525]
[1727451054879,0.22590191,66438.0,66432.0,0.301059]
[1727451055141,0.22590191,66438.0,66435.0,0.150523]
[1727451055392,0.22590191,66441.0,66430.0,0.301068]
[1727451055664,0.150519,66437.0,66432.0,0.150527]
[1727451055899,0.150524,66435.0,66431.0,0.150531]
[1727451056141,0.301038,66437.0,66428.0,0.175929]
[1727451056142,0.002,66437.0,66428.0,0.175929]
[1727451056437,0.301041,66436.0,66428.0,0.70290391]
[1727451056636,0.001,66438.0,66435.0,0.22590191]
[1727451056868,0.001,66438.0,66428.0,0.70290391]
[1727451056869,0.001,66438.0,66437.0,0.57910468]
[1727451057824,0.006,66441.0,66440.0,0.150511]
[1727451058298,0.006,66441.0,66440.0,0.248911]
[1727451058525,0.22590191,66448.0,66443.0,0.301009]
[1727451058764,0.22590191,66448.0,66440.0,0.0984]
[1727451059044,0.150489,66450.0,66446.0,0.150497]
[1727451059275,0.300964,66454.0,66450.0,0.150488]
[1727451059276,0.15048,66454.0,66450.0,0.150488]
[1727451059518,0.15048,66454.0,66447.0,0.30099]
[1727451059519,0.15048,66454.0,66452.0,0.0752]
[1727451059756,0.15214,66453.0,66452.0,0.0752]
[1727451060712,0.173484,66452.0,66451.0,0.0984]
[1727451060962,0.32877194,66452.0,66451.0,0.0984]
[1727451061657,0.150495,66448.0,66446.0,0.083]
[1727451061889,0.150495,66447.0,66446.0,0.083]
[1727451062635,0.150495,66447.0,66446.0,0.083829]
[1727451062889,0.37529402,66447.0,66446.0,0.000829]
[1727451063128,0.39609207,66447.0,66446.0,0.000829]
[1727451063346,0.63981008,66447.0,66446.0,0.000829]
[1727451063577,0.55006457,66447.0,66446.0,0.000829]
[1727451063841,0.63981008,66447.0,66446.0,0.000829]
[1727451064286,0.55206457,66447.0,66446.0,0.000829]
[1727451064541,0.55006457,66447.0,66446.0,0.000829]
[1727451064774,0.54906457,66447.0,66446.0,0.000829]
[1727451065023,0.56406457,66447.0,66446.0,0.000829]
[1727451065258,0.67624645,66447.0,66446.0,0.000829]
[1727451066000,0.56406457,66447.0,66446.0,0.000829]
[1727451066236,0.34872438,66447.0,66446.0,0.000829]
[1727451066478,0.56447017,66447.0,66446.0,0.000829]
[1727451069343,0.69931421,66447.0,66446.0,0.000829]
[1727451070307,0.56447017,66447.0,66446.0,0.000829]
[1727451070787,0.150518,66437.0,66436.0,0.1019]
[1727451071017,0.36626379,66437.0,66436.0,0.1019]
[1727451071930,0.301046,66435.0,66428.0,0.101329]
[1727451071934,0.150536,66429.0,66428.0,0.101329]
[1727451072166,0.36527758,66429.0,66428.0,0.101329]
[1727451072403,0.47779464,66429.0,66428.0,0.101329]
[1727451072656,0.36527758,66429.0,66428.0,0.101329]
[1727451073599,0.21474158,66429.0,66428.0,0.101329]
[1727451074077,0.30475565,66429.0,66428.0,0.101329]
[1727451074805,0.45529165,66429.0,66428.0,0.101329]
[1727451075041,0.21474158,66429.0,66428.0,0.251867]
[1727451075277,0.06745534,66430.0,66429.0,0.150536]
[1727451075511,0.06745534,66431.0,66429.0,0.150536]
[1727451075779,0.06743852,66431.0,66429.0,0.150536]
[1727451076020,0.04496123,66430.0,66428.0,0.251867]
[1727451076217,0.04496123,66430.0,66428.0,0.101329]
[1727451076218,0.06743852,66429.0,66428.0,0.101329]
[1727451076511,0.21797452,66429.0,66428.0,0.101329]
[1727451076744,0.47735655,66429.0,66428.0,0.101329]
[1727451077212,0.36495901,66429.0,66428.0,0.101329]
[1727451077923,0.37195901,66429.0,66428.0,0.101329]
[1727451078475,0.37795901,66429.0,66428.0,0.101329]
[1727451080190,0.4903149,66429.0,66428.0,0.101329]
[1727451080435,0.55624695,66429.0,66428.0,0.000829]
[1727451080933,0.173538,66428.0,66427.0,0.00059213]
[1727451081179,0.54488728,66428.0,66427.0,0.00059213]
[1727451081412,0.68819971,66428.0,66427.0,0.00059213]
[1727451082382,0.68819971,66428.0,66420.0,0.000828]
[1727451082383,0.173554,66421.0,66420.0,0.000828]
[1727451082616,0.46358221,66421.0,66420.0,0.000828]
[1727451082842,0.67800522,66421.0,66420.0,0.000828]
[1727451083367,0.54326495,66421.0,66420.0,0.000828]
[1727451084640,0.55326495,66421.0,66420.0,0.000828]
[1727451086070,0.32321558,66421.0,66420.0,0.182228]
[1727451086306,0.03,66422.0,66421.0,0.331954]
[1727451086539,0.22590191,66429.0,66428.0,0.331938]
[1727451086778,0.22590191,66429.0,66428.0,0.59078558]
[1727451087013,0.04489974,66433.0,66432.0,0.150529]
[1727451087285,0.04494701,66433.0,66432.0,0.150529]
[1727451087533,0.04494701,66434.0,66433.0,0.150527]
[1727451087766,0.04494701,66437.0,66434.0,0.0797]
[1727451088007,0.13474027,66449.0,66433.0,0.55990158]
[1727451088008,0.04494701,66445.0,66438.0,0.0797]
[1727451088247,0.08979257,66449.0,66444.0,0.25884758]
[1727451088248,0.04494701,66449.0,66444.0,0.25884758]
[1727451088515,0.27250692,66450.0,66449.0,0.150491]
[1727451089040,0.04660501,66450.0,66449.0,0.150491]
[1727451089556,0.001658,66450.0,66449.0,0.150491]
[1727451090775,0.001658,66450.0,66449.0,0.41333858]
[1727451091012,0.001658,66450.0,66449.0,0.59033858]
[1727451091259,0.001658,66450.0,66449.0,0.59433858]
[1727451091993,0.001658,66450.0,66449.0,0.59933858]
[1727451092243,0.001658,66450.0,66449.0,0.59533858]
[1727451092490,0.001658,66450.0,66449.0,0.59033858]
[1727451092978,0.002658,66450.0,66449.0,0.60133858]
[1727451093483,0.001658,66450.0,66449.0,0.59033858]
[1727451093721,0.002658,66450.0,66449.0,0.60333858]
[1727451093931,0.002658,66450.0,66449.0,0.60733858]
[1727451094445,0.002658,66450.0,66449.0,0.60333858]
[1727451094677,0.002658,66450.0,66449.0,1.05480858]
[1727451094921,0.003658,66450.0,66449.0,1.06680858]
[1727451095172,0.002658,66450.0,66449.0,1.05380858]
[1727451095407,0.003658,66450.0,66449.0,1.06180858]
[1727451095879,0.002658,66450.0,66449.0,1.05380858]
[1727451096122,0.003658,66450.0,66449.0,1.06180858]
[1727451096592,0.002658,66450.0,66449.0,1.04980858]
[1727451096826,0.001658,66450.0,66449.0,1.04180858]
[1727451097560,0.002658,66450.0,66449.0,1.04980858]
[1727451097816,0.001658,66450.0,66449.0,1.04180858]
[1727451098053,0.001658,66450.0,66449.0,0.63247]
[1727451098303,0.001658,66450.0,66449.0,0.64847]
[1727451098304,0.003658,66450.0,66449.0,0.64847]
[1727451098538,0.003658,66450.0,66449.0,0.56927]
[1727451098782,0.18194594,66450.0,66449.0,0.46747]
[1727451099022,0.18094594,66450.0,66449.0,0.45947]
[1727451099257,0.002658,66450.0,66449.0,0.63196726]
[1727451099500,0.002658,66450.0,66449.0,0.88305826]
[1727451099741,0.001658,66450.0,66449.0,0.87505826]
[1727451099983,0.001658,66450.0,66449.0,0.87405826]
[1727451100217,0.001658,66450.0,66449.0,0.87305826]
[1727451100450,0.002658,66450.0,66449.0,0.707561]
[1727451101414,0.001658,66450.0,66449.0,0.702561]
[1727451101653,0.001658,66450.0,66449.0,0.704561]
[1727451101889,0.001658,66450.0,66449.0,0.702561]
[1727451102132,0.001658,66450.0,66449.0,0.705561]
[1727451103368,0.001658,66450.0,66449.0,0.95975826]
[1727451104827,0.001658,66450.0,66449.0,0.95475826]
[1727451105089,0.001658,66450.0,66449.0,0.95775826]
[1727451105324,0.002658,66450.0,66449.0,0.96475826]
[1727451105560,0.002658,66450.0,66449.0,0.96175826]
[1727451105794,0.002658,66450.0,66449.0,1.66175826]
[1727451106031,0.002658,66450.0,66449.0,1.66875826]
[1727451106032,0.003658,66450.0,66449.0,1.66875826]
[1727451106511,0.002658,66450.0,66449.0,1.66175826]
[1727451106709,0.002658,66450.0,66449.0,0.96175826]
[1727451106990,0.003658,66450.0,66449.0,0.97075826]
[1727451116106,0.003658,66450.0,66449.0,1.67075826]
[1727451116348,0.003658,66450.0,66449.0,1.67275826]
[1727451116841,0.0034768,66450.0,66449.0,1.67275826]
[1727451117553,0.0034768,66450.0,66449.0,1.67075826]
[1727451118309,0.001658,66453.0,66452.0,0.152484]
[1727451118551,0.22590191,66471.0,66470.0,0.321143]
[1727451118790,0.22590191,66480.0,66479.0,0.150423]
[1727451119032,0.22590191,66480.0,66479.0,0.94489026]
[1727451119282,0.001656,66488.0,66484.0,0.15041]
[1727451119531,0.001656,66488.0,66486.0,0.17249726]
[1727451120010,0.001656,66488.0,66481.0,0.32291426]
[1727451120011,0.150406,66487.0,66481.0,0.32291426]
[1727451120268,0.302465,66488.0,66481.0,0.17249726]
[1727451120518,0.302465,66488.0,66479.0,0.45127]
[1727451120519,0.15528794,66486.0,66479.0,0.45127]
[1727451120764,0.150415,66483.0,66479.0,0.45127]
[1727451121004,0.30569594,66486.0,66480.0,0.15042]
[1727451121248,0.150409,66485.0,66480.0,0.15042]
[1727451121491,0.150421,66481.0,66479.0,0.45127]
[1727451121992,0.150421,66480.0,66479.0,0.45127]
[1727451122243,0.300829,66483.0,66479.0,0.45527]
[1727451122500,0.15042,66481.0,66479.0,0.45527]
[1727451122741,0.001658,66480.0,66479.0,0.45127]
[1727451123478,0.001658,66480.0,66479.0,0.45527]
[1727451123935,0.30900527,66480.0,66479.0,0.45927]
[1727451124440,0.30900527,66480.0,66479.0,0.45527]
[1727451125179,0.33200527,66480.0,66479.0,0.45527]
[1727451125509,0.33200527,66480.0,66479.0,0.45827]
[1727451125510,0.33036694,66480.0,66479.0,0.45827]
[1727451125953,0.33036694,66480.0,66479.0,0.45127]
[1727451126188,0.33536694,66480.0,66479.0,0.45227]
[1727451126429,0.33036694,66480.0,66479.0,0.45127]
[1727451126671,0.33036694,66480.0,66479.0,0.45227]
[1727451126926,0.33536694,66480.0,66479.0,0.45227]
[1727451127176,0.33036694,66480.0,66479.0,0.45127]
[1727451127417,0.16594594,66480.0,66479.0,0.45227]
[1727451127654,0.001658,66480.0,66479.0,0.45127]
[1727451127889,0.30736694,66480.0,66479.0,0.45127]
[1727451128137,0.31136694,66480.0,66479.0,0.45227]
[1727451128622,0.30736694,66480.0,66479.0,0.45127]
[1727451128875,0.37522978,66480.0,66479.0,0.45127]
[1727451129102,0.38022978,66480.0,66479.0,0.45227]
[1727451129387,0.3976612,66480.0,66479.0,0.45127]
[1727451129621,0.33536694,66480.0,66479.0,0.45227]
[1727451130343,0.40268796,66480.0,66479.0,0.45227]
[1727451130605,0.49246047,66480.0,66479.0,0.45227]
[1727451130822,0.33536694,66480.0,66479.0,0.45227]
[1727451131301,0.64668391,66480.0,66479.0,0.45227]
[1727451131541,0.55692596,66480.0,66479.0,0.45227]
[1727451131781,0.33536694,66480.0,66479.0,0.45227]
[1727451132036,0.63770318,66480.0,66479.0,0.45127]
[1727451132297,0.55187823,66480.0,66479.0,0.45127]
[1727451132538,0.55687823,66480.0,66479.0,0.45227]
[1727451132775,0.54787823,66480.0,66479.0,0.45127]
[1727451133007,0.55687823,66480.0,66479.0,0.45227]
[1727451133308,0.65687823,66480.0,66479.0,0.45227]
[1727451133524,0.86360528,66480.0,66479.0,0.45227]
[1727451133762,1.05516947,66480.0,66479.0,0.45127]
[1727451134001,1.05425043,66480.0,66479.0,0.45127]
[1727451134245,0.93142338,66480.0,66479.0,0.45127]
[1727451134524,0.78567601,66480.0,66479.0,0.45127]
[1727451135230,0.79567601,66480.0,66479.0,0.45227]
[1727451135460,0.94606407,66480.0,66479.0,0.45127]
[1727451135966,0.95406407,66480.0,66479.0,0.43127]
[1727451136197,0.96406407,66480.0,66479.0,0.43227]
[1727451136663,0.95206407,66480.0,66479.0,0.43127]
[1727451136900,0.80767601,66480.0,66479.0,0.43227]
[1727451137180,0.80967601,66480.0,66479.0,0.43227]
[1727451137676,0.80967601,66480.0,66479.0,0.43127]
[1727451137677,0.79967601,66480.0,66479.0,0.43127]
[1727451137911,0.81367601,66480.0,66479.0,0.43127]
[1727451138152,0.79967601,66480.0,66479.0,0.43027]
[1727451138383,0.78567601,66480.0,66479.0,0.43027]
[1727451138623,0.81248787,66480.0,66479.0,0.43027]
[1727451138877,0.85530801,66480.0,66479.0,0.43027]
[1727451139128,0.85530801,66480.0,66479.0,0.40528526]
[1727451139129,0.86930801,66480.0,66479.0,0.40528526]
[1727451139371,0.85530801,66480.0,66479.0,0.40528526]
[1727451139613,0.167437,66473.0,66472.0,0.000829]
[1727451139847,0.167437,66473.0,66466.0,0.22565768]
[1727451139848,0.27845,66467.0,66466.0,0.22565768]
[1727451140083,0.95250264,66467.0,66466.0,0.22565768]
[1727451140328,0.150466,66460.0,66449.0,0.0772]
[1727451140573,0.54399029,66460.0,66451.0,0.250686]
[1727451140845,0.023,66458.0,66451.0,0.1002]
[1727451141089,0.04491907,66452.0,66451.0,0.250686]
[1727451141328,0.0449182,66455.0,66452.0,0.300968]
[1727451141563,0.0449182,66456.0,66455.0,0.150477]
[1727451141810,0.0449182,66457.0,66456.0,0.150475]
[1727451142043,0.0449182,66457.0,66456.0,0.325275]
[1727451142285,0.21517488,66467.0,66456.0,0.325275]
[1727451142286,0.0469182,66458.0,66457.0,0.150473]
[1727451142527,0.0673786,66460.0,66456.0,0.47575]
[1727451142756,0.04492198,66458.0,66456.0,0.47575]
[1727451143024,0.04492198,66459.0,66458.0,0.15047]
[1727451143260,0.04492198,66460.0,66459.0,0.150468]
[1727451143499,0.0673786,66460.0,66459.0,0.150468]
[1727451143744,0.0673786,66461.0,66456.0,0.1748]
[1727451144002,0.150473,66457.0,66456.0,0.1748]
[1727451144236,0.37414355,66457.0,66456.0,0.1748]
[1727451144739,0.65607152,66457.0,66456.0,0.0998]
[1727451144976,0.65607152,66457.0,66442.0,0.301012]
[1727451144977,0.150504,66443.0,66442.0,0.0828]
[1727451145228,0.150504,66443.0,66440.0,0.22590191]
[1727451145229,0.20019441,66443.0,66440.0,0.22590191]
[1727451145474,0.173509,66441.0,66440.0,0.22590191]
[1727451145709,0.173509,66441.0,66434.0,0.1006]
[1727451145710,0.150523,66435.0,66434.0,0.1006]
[1727451145971,0.45395699,66435.0,66434.0,0.1006]
[1727451146461,0.60924493,66435.0,66434.0,0.1006]
[1727451146699,0.32881094,66435.0,66434.0,0.1006]
[1727451146940,0.32881094,66435.0,66434.0,0.101429]
[1727451148369,0.32981094,66435.0,66434.0,0.101429]